fUSD/lending_fUSD_20260408
["ID","MTS","AMOUNT","RATE_DAILY","PERIOD"]
[420051946,1775634640418,-4609.0,0.00012688,2]
[420051947,1775634640427,-154.0,0.00012699,3]
[420051948,1775634640437,-321.19440796,0.00012715,2]
[420051949,1775634640446,-17033.6975553,0.00012715,2]
[420051950,1775634640455,-4810.31020036,0.00012715,2]
[420051951,1775634640465,-151.0,0.00012739,2]
[420051952,1775634640474,-200.0,0.0001274,2]
[420051953,1775634640484,-1438.09495884,0.0001274,2]
[420051954,1775634640493,-2000.0,0.00012764,2]
[420051955,1775634640503,-600.0,0.000128,2]
[420051956,1775634640512,-150.0,0.00012805,2]
[420051957,1775634640521,-150.0,0.00012805,2]
[420051958,1775634640531,-150.0,0.00012807,2]
[420051959,1775634640540,-179.092875,0.00012816,2]
[420051960,1775634640550,-1152.0,0.00012817,2]
[420051961,1775634640560,-214.48,0.00012885,2]
[420051962,1775634640570,-623.58710448,0.00012917,2]
[420051963,1775634640579,-174.61919141,0.00012917,2]
[420051964,1775634640588,-2168.30156106,0.00012917,2]
[420051965,1775634640602,-6091.82916133,0.00012917,2]
[420051966,1775634640612,-3000.0,0.00012917,2]
[420051967,1775634640622,-3000.0,0.00012917,2]
[420051968,1775634640631,-3000.0,0.00012917,2]
[420051969,1775634640641,-3000.0,0.00012917,2]
[420051970,1775634640651,-2620.91593184,0.00012917,2]
[420051971,1775634640661,-200.0,0.00012917,2]
[420051972,1775634640671,-599.60298507,0.00012917,2]
[420051973,1775634640681,-160.62835242,0.00012917,2]
[420051974,1775634640691,-271.6356513,0.00012917,2]
[420051975,1775634640701,-578.20924308,0.00012917,2]
[420051976,1775634640711,-500.0,0.00012917,2]
[420051977,1775634640721,-1235.18214925,0.00012917,2]
[420051978,1775634640730,-1000.0,0.00012917,2]
[420051979,1775634640740,-1000.0,0.00012917,2]
[420051980,1775634640749,-1000.0,0.00012917,2]
[420051981,1775634640758,-1000.0,0.00012917,2]
[420051982,1775634640767,-1000.0,0.00012917,2]
[420051983,1775634640776,-1000.0,0.00012917,2]
[420051984,1775634640786,-1000.0,0.00012917,2]
[420051985,1775634640795,-1000.0,0.00012917,2]
[420051986,1775634640805,-1043.19678234,0.00012917,2]
[420051987,1775634640814,-151.0,0.00012917,2]
[420051988,1775634640824,-170.0,0.00012917,2]
[420051989,1775634640833,-170.0,0.00012917,2]
[420051990,1775634640843,-170.0,0.00012917,2]
[420051991,1775634640852,-170.0,0.00012917,2]
[420051992,1775634640860,-170.0,0.00012917,2]
[420051993,1775634640870,-170.0,0.00012917,2]
[420051994,1775634640879,-151.0,0.00012917,2]
[420051995,1775634640889,-170.0,0.00012917,2]
[420051996,1775634640898,-151.0,0.00012917,2]
[420051997,1775634640907,-170.0,0.00012917,2]
[420051998,1775634640917,-158.44511549,0.00012917,2]
[420051999,1775634640926,-170.0,0.00012917,2]
[420052000,1775634640935,-181.08010149,0.00012917,2]
[420052001,1775634640945,-170.0,0.00012917,2]
[420052002,1775634640954,-170.0,0.00012917,2]
[420052003,1775634640963,-170.0,0.00012917,2]
[420052004,1775634640972,-170.0,0.00012917,2]
[420052005,1775634640982,-170.0,0.00012917,2]
[420052006,1775634640991,-170.0,0.00012917,2]
[420052007,1775634641000,-285.62441693,0.00012917,2]
[420052008,1775634641010,-1500.0,0.00012917,2]
[420052009,1775634641019,-1532.75885711,0.00012917,2]
[420052010,1775634641029,-181.08010149,0.00012917,2]
[420052011,1775634641038,-743.50770149,0.00012917,2]
[420052012,1775634641048,-8565.75555911,0.00012972,2]
[420052013,1775634641057,-500.0,0.00012972,2]
[420052014,1775634641066,-151.0,0.00012972,2]
[420052015,1775634641075,-250.0,0.00013,2]
[420052016,1775634641085,-2694.11375725,0.00013027,2]
[420052017,1775634641095,-500.0,0.00013027,2]
[420052018,1775634641105,-151.0,0.00013027,2]
[420052019,1775634641114,-6730.30897899,0.00013029,2]
[420052020,1775634641123,-500.0,0.00013082,2]
[420052021,1775634641133,-151.0,0.00013082,2]
[420052022,1775634641143,-500.0,0.00013137,2]
[420052023,1775634641153,-151.0,0.00013137,2]
[420052024,1775634641162,-500.0,0.00013192,2]
[420052025,1775634641172,-151.0,0.00013192,2]
[420052026,1775634641181,-223.7133,0.000132,2]
[420052027,1775634641190,-1600.0,0.00013226,2]
[420052028,1775634641200,-500.0,0.00013247,2]
[420052029,1775634641210,-151.0,0.00013247,2]
[420052030,1775634641220,-1163.423594,0.00013285,2]
[420052031,1775634641230,-201.60184993,0.00013288,2]
[420052032,1775634641241,-283.35742538,0.00013288,2]
[420052033,1775634641251,-500.0,0.00013302,2]
[420052034,1775634641261,-151.0,0.00013302,2]
[420052035,1775634641270,-500.0,0.00013357,2]
[420052036,1775634641280,-151.0,0.00013357,2]
[420052037,1775634641290,-500.0,0.00013412,2]
[420052038,1775634641299,-151.0,0.00013412,2]
[420052039,1775634641309,-181.08010149,0.00013465,2]
[420052040,1775634641318,-200.0,0.00013465,2]
[420052041,1775634641328,-591.41950389,0.00013465,2]
[420052042,1775634641337,-1280.88388878,0.00013465,2]
[420052043,1775634641347,-771.01748645,0.00013465,2]
[420052044,1775634641356,-500.0,0.00013467,2]
[420052045,1775634641366,-151.0,0.00013467,2]
[420052046,1775634641375,-1243.0,0.00013507,3]
[420052047,1775634641384,-38114.63246698,0.0001351,2]
[420052048,1775634641398,-302.07730457,0.0001351,2]
[420052049,1775634641409,-1524.0230709,0.0001351,2]
[420052050,1775634641421,-555.92102686,0.0001351,2]
[420052051,1775634641433,-672.09,0.0001351,2]
[420052052,1775634641445,-1421.69894956,0.0001351,2]
[420052053,1775634641535,-391.88,0.0001351,2]
[420052054,1775634641547,-255.83894739,0.0001351,2]
[420052055,1775634641558,-2584.1379276,0.0001351,2]
[420052056,1775634641569,-1106.64191315,0.0001351,2]
[420052057,1775634642247,-13688.98583388,0.00012044,2]
[420052058,1775634642259,-2890.96426327,0.00012044,2]
[420052059,1775634642271,-2418.07525,0.00012044,2]
[420052060,1775634642330,-151.0,9.793e-05,2]
[420052061,1775634642339,-113.28639353,0.00012044,2]
[420052062,1775634642350,-21415.70970504,0.0001351,2]
[420052063,1775634642362,-74788.68905094,0.0001351,2]
[420052064,1775634642372,-500.0,0.00013522,2]
[420052065,1775634642383,-151.0,0.00013522,2]
[420052066,1775634642393,-1252.0,0.00013574,2]
[420052067,1775634642403,-500.0,0.00013577,2]
[420052068,1775634642413,-151.0,0.00013577,2]
[420052069,1775634642423,-500.0,0.00013632,2]
[420052070,1775634642433,-151.0,0.00013632,2]
[420052071,1775634642444,-2683.73653912,0.00013665,2]
[420052072,1775634642454,-500.0,0.00013687,2]
[420052073,1775634642464,-151.0,0.00013687,2]
[420052074,1775634642480,-501.50073946,0.00013698,2]
[420052075,1775634642489,-500.0,0.00013698,2]
[420052076,1775634642500,-500.0,0.00013698,2]
[420052077,1775634642510,-500.0,0.00013698,2]
[420052078,1775634642520,-500.0,0.00013698,2]
[420052079,1775634642530,-500.0,0.00013698,2]
[420052080,1775634642541,-500.0,0.00013698,2]
[420052081,1775634642551,-500.0,0.00013698,2]
[420052082,1775634642562,-500.0,0.00013698,2]
[420052083,1775634642572,-500.0,0.00013698,2]
[420052084,1775634642582,-500.0,0.00013698,2]
[420052085,1775634642593,-500.0,0.00013698,2]
[420052086,1775634642602,-500.0,0.00013698,2]
[420052087,1775634642613,-500.0,0.00013698,2]
[420052088,1775634642623,-500.0,0.00013698,2]
[420052089,1775634642632,-500.0,0.00013698,2]
[420052090,1775634642642,-500.0,0.00013698,2]
[420052091,1775634642653,-630.71,0.00013698,2]
[420052092,1775634642663,-504.74596653,0.00013698,2]
[420052093,1775634642673,-500.0,0.00013698,2]
[420052095,1775634642683,-500.0,0.00013698,2]
[420052096,1775634642693,-500.0,0.00013698,2]
[420052097,1775634642703,-500.0,0.00013698,2]
[420052098,1775634642714,-500.0,0.00013698,2]
[420052100,1775634642725,-500.0,0.00013698,2]
[420052102,1775634642735,-500.0,0.00013698,2]
[420052103,1775634642744,-500.0,0.00013698,2]
[420052104,1775634642755,-500.0,0.00013698,2]
[420052105,1775634643290,-500.0,0.00013698,2]
[420052106,1775634643300,-499.6872898,0.00013698,2]
[420052107,1775634643310,-500.0,0.00013698,2]
[420052108,1775634643320,-500.0,0.00013698,2]
[420052109,1775634643330,-500.0,0.00013698,2]
[420052110,1775634643341,-500.0,0.00013698,2]
[420052111,1775634643351,-500.0,0.00013698,2]
[420052112,1775634643362,-500.0,0.00013698,2]
[420052113,1775634643373,-500.0,0.00013698,2]
[420052114,1775634643384,-615.24875447,0.00013698,2]
[420052115,1775634643394,-500.0,0.00013698,2]
[420052116,1775634643405,-500.0,0.00013698,2]
[420052117,1775634643414,-500.45174561,0.00013698,2]
[420052118,1775634643424,-500.0,0.00013698,2]
[420052119,1775634643434,-500.0,0.00013698,2]
[420052120,1775634643444,-500.0,0.00013698,2]
[420052121,1775634643455,-500.0,0.00013698,2]
[420052122,1775634643467,-406.01852309,0.00013698,2]
[420052123,1775634643478,-500.0,0.00013698,2]
[420052124,1775634643487,-500.0,0.00013698,2]
[420052125,1775634643498,-500.0,0.00013698,2]
[420052126,1775634643509,-500.0,0.00013698,2]
[420052127,1775634643520,-500.0,0.00013698,2]
[420052128,1775634643530,-500.0,0.00013698,2]
[420052129,1775634643541,-500.0,0.00013698,2]
[420052130,1775634643552,-500.0,0.00013698,2]
[420052131,1775634643563,-500.0,0.00013698,2]
[420052132,1775634643574,-500.0,0.00013698,2]
[420052133,1775634643584,-500.0,0.00013698,2]
[420052134,1775634643594,-500.0,0.00013698,2]
[420052135,1775634643609,-500.0,0.00013698,2]
[420052136,1775634643628,-392.00957995,0.00013698,2]
[420052137,1775634643650,-500.0,0.00013698,2]
[420052138,1775634643661,-500.0,0.00013698,2]
[420052139,1775634643673,-500.0,0.00013698,2]
[420052140,1775634643684,-500.0,0.00013698,2]
[420052141,1775634643695,-500.0,0.00013698,2]
[420052142,1775634643706,-500.0,0.00013698,2]
[420052143,1775634643716,-500.0,0.00013698,2]
[420052144,1775634643726,-420.19790691,0.00013698,2]
[420052145,1775634643736,-500.0,0.00013698,2]
[420052146,1775634643746,-500.0,0.00013698,2]
[420052147,1775634643756,-500.0,0.00013698,2]
[420052148,1775634643766,-500.0,0.00013698,2]
[420052149,1775634643776,-500.0,0.00013698,2]
[420052150,1775634643786,-500.0,0.00013698,2]
[420052151,1775634643796,-500.0,0.00013698,2]
[420052152,1775634643807,-500.0,0.00013698,2]
[420052153,1775634643817,-500.0,0.00013698,2]
[420052154,1775634643827,-500.0,0.00013698,2]
[420052155,1775634643838,-500.0,0.00013698,2]
[420052156,1775634643848,-500.0,0.00013698,2]
[420052157,1775634643858,-500.0,0.00013698,2]
[420052158,1775634643869,-500.0,0.00013698,2]
[420052159,1775634643881,-500.0,0.00013698,2]
[420052160,1775634643891,-542.71692042,0.00013698,2]
[420052161,1775634643901,-500.0,0.00013698,2]
[420052162,1775634643911,-500.0,0.00013698,2]
[420052163,1775634643921,-500.0,0.00013698,2]
[420052164,1775634643931,-500.0,0.00013698,2]
[420052165,1775634643942,-500.0,0.00013698,2]
[420052166,1775634643953,-644.24464926,0.00013698,2]
[420052167,1775634643963,-500.0,0.00013698,2]
[420052168,1775634643973,-500.0,0.00013698,2]
[420052169,1775634643983,-500.0,0.00013698,2]
[420052170,1775634643992,-500.0,0.00013698,2]
[420052171,1775634644002,-500.0,0.00013698,2]
[420052172,1775634644013,-500.0,0.00013698,2]
[420052173,1775634644023,-500.0,0.00013698,2]
[420052174,1775634644033,-500.0,0.00013698,2]
[420052175,1775634644044,-500.0,0.00013698,2]
[420052176,1775634644054,-500.0,0.00013698,2]
[420052177,1775634644064,-562.38643831,0.00013698,2]
[420052178,1775634644074,-500.0,0.00013698,2]
[420052179,1775634644085,-500.0,0.00013698,2]
[420052180,1775634644096,-500.0,0.00013698,2]
[420052181,1775634644106,-500.0,0.00013698,2]
[420052182,1775634644116,-500.0,0.00013698,2]
[420052183,1775634644126,-500.0,0.00013698,2]
[420052184,1775634644137,-500.0,0.00013698,2]
[420052185,1775634644146,-500.0,0.00013698,2]
[420052186,1775634644155,-500.0,0.00013698,2]
[420052187,1775634644165,-500.0,0.00013698,2]
[420052188,1775634644174,-500.0,0.00013698,2]
[420052189,1775634644185,-500.0,0.00013698,2]
[420052190,1775634644194,-500.0,0.00013698,2]
[420052191,1775634644204,-500.0,0.00013698,2]
[420052192,1775634644213,-500.0,0.00013698,2]
[420052193,1775634644222,-500.0,0.00013698,2]
[420052194,1775634644233,-500.0,0.00013698,2]
[420052195,1775634644242,-500.0,0.00013698,2]
[420052196,1775634644251,-215.39830433,0.00013698,2]
[420052197,1775634644261,-553.39225555,0.00013698,2]
[420052198,1775634644270,-822.15,0.00013698,2]
[420052199,1775634644280,-822.15,0.00013698,2]
[420052200,1775634644290,-822.15,0.00013698,2]
[420052201,1775634644299,-822.15,0.00013698,2]
[420052202,1775634644309,-822.15,0.00013698,2]
[420052203,1775634644319,-822.15,0.00013698,2]
[420052204,1775634644328,-822.15,0.00013698,2]
[420052205,1775634644338,-822.15,0.00013698,2]
[420052206,1775634644348,-822.15,0.00013698,2]
[420052207,1775634644357,-822.15,0.00013698,2]
[420052208,1775634644367,-822.15,0.00013698,2]
[420052209,1775634644376,-822.15,0.00013698,2]
[420052210,1775634644385,-822.15,0.00013698,2]
[420052211,1775634644395,-822.15,0.00013698,2]
[420052212,1775634644405,-822.15,0.00013698,2]
[420052213,1775634644415,-822.15,0.00013698,2]
[420052214,1775634644426,-822.15,0.00013698,2]
[420052215,1775634644435,-822.15,0.00013698,2]
[420052216,1775634644444,-822.15,0.00013698,2]
[420052217,1775634644454,-822.15,0.00013698,2]
[420052218,1775634644464,-822.15,0.00013698,2]
[420052219,1775634644474,-822.15,0.00013698,2]
[420052220,1775634644483,-822.15,0.00013698,2]
[420052221,1775634644493,-822.2828036,0.00013698,2]
[420052222,1775634644503,-500.0,0.00013698,2]
[420052223,1775634644512,-500.0,0.00013698,2]
[420052224,1775634644522,-500.0,0.00013698,2]
[420052225,1775634644531,-264.78361919,0.00013698,2]
[420052226,1775634644542,-500.0,0.00013698,2]
[420052227,1775634644551,-500.0,0.00013698,2]
[420052228,1775634644561,-633.831471,0.00013698,2]
[420052229,1775634644571,-500.0,0.00013698,2]
[420052230,1775634644581,-500.0,0.00013698,2]
[420052231,1775634644590,-500.0,0.00013698,2]
[420052232,1775634644599,-500.0,0.00013698,2]
[420052233,1775634644609,-500.0,0.00013698,2]
[420052234,1775634644619,-500.0,0.00013698,2]
[420052235,1775634644628,-500.0,0.00013698,2]
[420052236,1775634644638,-500.0,0.00013698,2]
[420052237,1775634644647,-500.0,0.00013698,2]
[420052238,1775634644657,-500.0,0.00013698,2]
[420052239,1775634644667,-500.0,0.00013698,2]
[420052240,1775634644676,-500.0,0.00013698,2]
[420052241,1775634644686,-223.3967903,0.00013698,2]
[420052242,1775634644695,-500.0,0.00013698,2]
[420052243,1775634644704,-500.0,0.00013698,2]
[420052244,1775634644714,-500.03954585,0.00013698,2]
[420052245,1775634644724,-500.0,0.00013698,2]
[420052246,1775634644733,-500.0,0.00013698,2]
[420052247,1775634644743,-454.40497159,0.00013698,2]
[420052248,1775634644753,-558.57,0.00013698,2]
[420052249,1775634644764,-558.57,0.00013698,2]
[420052250,1775634644773,-558.57,0.00013698,2]
[420052251,1775634644782,-558.57,0.00013698,2]
[420052252,1775634644792,-558.57,0.00013698,2]
[420052253,1775634644801,-558.57,0.00013698,2]
[420052254,1775634644810,-558.57,0.00013698,2]
[420052255,1775634644820,-558.57,0.00013698,2]
[420052256,1775634644829,-558.57,0.00013698,2]
[420052257,1775634644839,-500.0,0.00013698,2]
[420052258,1775634644849,-558.57,0.00013698,2]
[420052259,1775634644858,-500.0,0.00013698,2]
[420052260,1775634644867,-558.57,0.00013698,2]
[420052261,1775634644877,-500.0,0.00013698,2]
[420052262,1775634644886,-558.57,0.00013698,2]
[420052263,1775634644895,-500.0,0.00013698,2]
[420052264,1775634644905,-558.57,0.00013698,2]
[420052265,1775634644914,-500.0,0.00013698,2]
[420052266,1775634644924,-500.0,0.00013698,2]
[420052267,1775634644934,-558.57,0.00013698,2]
[420052268,1775634644944,-500.0,0.00013698,2]
[420052269,1775634644953,-558.57,0.00013698,2]
[420052270,1775634644963,-467.66178343,0.00013698,2]
[420052271,1775634644973,-558.57,0.00013698,2]
[420052272,1775634644982,-558.57,0.00013698,2]
[420052273,1775634644992,-558.57,0.00013698,2]
[420052274,1775634645002,-558.57,0.00013698,2]
[420052275,1775634645012,-558.57,0.00013698,2]
[420052276,1775634645022,-558.57,0.00013698,2]
[420052277,1775634645033,-558.57,0.00013698,2]
[420052278,1775634645044,-558.57,0.00013698,2]
[420052279,1775634645053,-558.74,0.00013698,2]
[420052280,1775634645063,-500.0,0.00013698,2]
[420052281,1775634645072,-500.0,0.00013698,2]
[420052282,1775634645083,-500.0,0.00013698,2]
[420052283,1775634645092,-500.0,0.00013698,2]
[420052284,1775634645102,-500.0,0.00013698,2]
[420052285,1775634645111,-500.0,0.00013698,2]
[420052286,1775634645120,-500.0,0.00013698,2]
[420052287,1775634645130,-500.0,0.00013698,2]
[420052288,1775634645139,-500.0,0.00013698,2]
[420052289,1775634645149,-500.0,0.00013698,2]
[420052290,1775634645158,-248.76967055,0.00013698,2]
[420052291,1775634645167,-500.0,0.00013698,2]
[420052292,1775634645176,-500.0,0.00013698,2]
[420052293,1775634645187,-500.0,0.00013698,2]
[420052294,1775634645196,-500.0,0.00013698,2]
[420052295,1775634645205,-500.0,0.00013698,2]
[420052296,1775634645214,-500.0,0.00013698,2]
[420052297,1775634645223,-500.0,0.00013698,2]
[420052298,1775634645233,-500.0,0.00013698,2]
[420052299,1775634645242,-637.2484516,0.00013698,2]
[420052300,1775634645252,-1214.55116669,0.00013698,2]
[420052301,1775634645261,-500.0,0.00013698,2]
[420052302,1775634645271,-500.0,0.00013698,2]
[420052303,1775634645280,-500.0,0.00013698,2]
[420052304,1775634645290,-500.0,0.00013698,2]
[420052305,1775634645299,-500.0,0.00013698,2]
[420052306,1775634645308,-500.0,0.00013698,2]
[420052307,1775634645318,-500.0,0.00013698,2]
[420052308,1775634645328,-500.0,0.00013698,2]
[420052309,1775634645338,-500.0,0.00013698,2]
[420052310,1775634645348,-500.0,0.00013698,2]
[420052311,1775634645358,-500.0,0.00013698,2]
[420052312,1775634645367,-500.0,0.00013698,2]
[420052313,1775634645377,-500.0,0.00013698,2]
[420052314,1775634645386,-500.0,0.00013698,2]
[420052315,1775634645396,-522.8150328,0.00013698,2]
[420052316,1775634645406,-500.0,0.00013698,2]
[420052317,1775634645416,-500.0,0.00013698,2]
[420052318,1775634645425,-500.0,0.00013698,2]
[420052319,1775634645435,-500.0,0.00013698,2]
[420052320,1775634645445,-500.0,0.00013698,2]
[420052321,1775634645455,-500.0,0.00013698,2]
[420052322,1775634645464,-500.0,0.00013698,2]
[420052323,1775634645473,-500.0,0.00013698,2]
[420052324,1775634645483,-500.14075642,0.00013698,2]
[420052325,1775634645492,-500.0,0.00013698,2]
[420052326,1775634645502,-500.0,0.00013698,2]
[420052328,1775634645512,-500.0,0.00013698,2]
[420052330,1775634645522,-500.0,0.00013698,2]
[420052331,1775634645531,-500.0,0.00013698,2]
[420052333,1775634645541,-500.0,0.00013698,2]
[420052334,1775634645550,-500.0,0.00013698,2]
[420052335,1775634645560,-500.0,0.00013698,2]
[420052336,1775634645570,-500.0,0.00013698,2]
[420052337,1775634645580,-500.0,0.00013698,2]
[420052338,1775634645589,-500.0,0.00013698,2]
[420052339,1775634645598,-500.0,0.00013698,2]
[420052340,1775634645607,-500.0,0.00013698,2]
[420052341,1775634645616,-514.41880912,0.00013698,2]
[420052342,1775634645626,-500.0,0.00013698,2]
[420052343,1775634645635,-500.0,0.00013698,2]
[420052344,1775634645644,-500.0,0.00013698,2]
[420052345,1775634645654,-500.0,0.00013698,2]
[420052346,1775634645663,-500.0,0.00013698,2]
[420052347,1775634645672,-500.0,0.00013698,2]
[420052348,1775634645682,-500.0,0.00013698,2]
[420052349,1775634645692,-595.48595604,0.00013698,2]
[420052350,1775634645702,-150.0,0.00013699,2]
[420052351,1775634645711,-150.0,0.00013699,2]
[420052352,1775634645721,-150.0,0.00013699,2]
[420052353,1775634645731,-166.66,0.00013699,2]
[420052354,1775634645740,-476.15,0.00013699,2]
[420052355,1775634645750,-396.8,0.00013699,2]
[420052356,1775634645760,-330.66,0.00013699,2]
[420052357,1775634645769,-275.55,0.00013699,2]
[420052358,1775634645778,-229.63,0.00013699,2]
[420052359,1775634645787,-191.36,0.00013699,2]
[420052360,1775634645797,-159.46,0.00013699,2]
[420052361,1775634645807,-797.34,0.00013699,2]
[420052362,1775634645816,-2494.97,0.00013699,2]
[420052363,1775634645825,-500.0,0.00013699,2]
[420052364,1775634645835,-500.0,0.00013699,2]
[420052365,1775634645844,-538.78941312,0.00013699,2]
[420052366,1775634645854,-500.0,0.00013699,2]
[420052367,1775634645864,-500.0,0.00013699,2]
[420052368,1775634645874,-500.0,0.00013699,2]
[420052369,1775634645884,-361.43877969,0.00013699,2]
[420052370,1775634645892,-500.0,0.00013699,2]
[420052371,1775634645902,-500.0,0.00013699,2]
[420052372,1775634645911,-165.08001948,0.00013699,2]
[420052373,1775634645920,-500.0,0.00013699,2]
[420052374,1775634645930,-500.0,0.00013699,2]
[420052375,1775634645939,-500.0,0.00013699,2]
[420052376,1775634645948,-500.0,0.00013699,2]
[420052377,1775634645958,-500.0,0.00013699,2]
[420052378,1775634645968,-308.60154884,0.00013699,2]
[420052379,1775634645978,-500.0,0.00013699,2]
[420052380,1775634645987,-500.0,0.00013699,2]
[420052381,1775634645996,-502.08343248,0.00013699,2]
[420052382,1775634646005,-503.98766467,0.00013699,2]
[420052383,1775634646015,-244.23047354,0.00013699,2]
[420052384,1775634646024,-500.0,0.00013699,2]
[420052385,1775634646033,-500.0,0.00013699,2]
[420052386,1775634646042,-500.0,0.00013699,2]
[420052387,1775634646052,-288.28066678,0.00013699,2]
[420052388,1775634646062,-500.0,0.00013699,2]
[420052389,1775634646072,-1000.0,0.00013699,7]
[420052390,1775634646081,-500.0,0.00013699,2]
[420052391,1775634646091,-500.0,0.00013699,2]
[420052392,1775634646100,-501.22826804,0.00013699,2]
[420052393,1775634646110,-500.0,0.00013699,2]
[420052394,1775634646120,-500.0,0.00013699,2]
[420052395,1775634646129,-500.0,0.00013699,2]
[420052396,1775634646139,-500.0,0.00013699,2]
[420052397,1775634646148,-500.0,0.00013699,2]
[420052398,1775634646157,-500.0,0.00013699,2]
[420052399,1775634646166,-500.0,0.00013699,2]
[420052400,1775634646175,-500.0,0.00013699,2]
[420052401,1775634646185,-474.64837932,0.00013699,2]
[420052402,1775634646194,-500.0,0.00013699,2]
[420052403,1775634646204,-164.42313659,0.00013699,2]
[420052404,1775634646213,-500.0,0.00013699,2]
[420052405,1775634646222,-500.0,0.00013699,2]
[420052406,1775634646232,-153.97,0.00013699,2]
[420052407,1775634646241,-964.0,0.00013699,2]
[420052408,1775634646251,-964.0,0.00013699,2]
[420052409,1775634646260,-964.0,0.00013699,2]
[420052410,1775634646269,-964.0,0.00013699,2]
[420052411,1775634646279,-964.0,0.00013699,2]
[420052412,1775634646289,-964.0,0.00013699,2]
[420052413,1775634646298,-964.0,0.00013699,2]
[420052414,1775634646307,-964.0,0.00013699,2]
[420052415,1775634646317,-964.0,0.00013699,2]
[420052416,1775634646327,-964.0,0.00013699,2]
[420052417,1775634646336,-964.0,0.00013699,2]
[420052418,1775634646346,-964.0,0.00013699,2]
[420052419,1775634646355,-964.0,0.00013699,2]
[420052420,1775634646365,-964.0,0.00013699,2]
[420052421,1775634646375,-964.0,0.00013699,2]
[420052422,1775634646384,-964.0,0.00013699,2]
[420052423,1775634646393,-964.0,0.00013699,2]
[420052424,1775634646403,-964.0,0.00013699,2]
[420052425,1775634646412,-964.0,0.00013699,2]
[420052427,1775634646422,-964.0,0.00013699,2]
[420052429,1775634646431,-964.0,0.00013699,2]
[420052431,1775634646441,-158.15239998,0.00013699,2]
[420052433,1775634646450,-964.0,0.00013699,2]
[420052435,1775634646460,-964.0,0.00013699,2]
[420052437,1775634646469,-985.24465103,0.00013699,2]
[420052439,1775634646479,-1000.0,0.00013699,2]
[420052441,1775634646488,-2865.24,0.000137,2]
[420052443,1775634646497,-2865.24,0.000137,2]
[420052444,1775634646507,-2865.24,0.000137,2]
[420052446,1775634646516,-2865.24,0.000137,2]
[420052448,1775634646526,-2865.24,0.000137,2]
[420052450,1775634646536,-447.28942319,0.00013788,2]
[420052453,1775634646547,-502.38567456,0.00013825,2]
[420052455,1775634646557,-166.66,0.00013836,2]
[420052457,1775634646567,-500.0,0.00013836,2]
[420052459,1775634646577,-500.0,0.00013836,2]
[420052461,1775634646586,-500.0,0.00013836,2]
[420052462,1775634646595,-501.53334874,0.00013836,2]
[420052464,1775634646605,-8509.89089693,0.00013859,2]
[420052466,1775634646615,-447.28942319,0.00013925,2]
[420052468,1775634646626,-6453.0,0.00013956,2]
[420052470,1775634646635,-500.0,0.00013967,2]
[420052473,1775634646645,-500.18173431,0.00013967,2]
[420052474,1775634646655,-163.86569709,0.00013967,2]
[420052476,1775634646664,-500.0,0.00013967,2]